[Event "*** SCC Grand Prix: Titled Tuesday Blitz"]
[Site "Chess.com"]
[Date "2020.10.06"]
[Round "4"]
[White "serena-maria"]
[Black "Sergey85Rodchenkov"]
[Result "0-1"]
[WhiteElo "2282"]
[BlackElo "2466"]
[TimeControl "180+1"]
[EndTime "10:39:42 PDT"]
[Termination "Sergey85Rodchenkov won by checkmate"]

1. Nf3 {[%clk 0:03:00.3]} 1... Nf6 {[%clk 0:02:59.3]} 2. g3 {[%clk 0:03:00.2]}
2... b5 {[%clk 0:02:59.1]} 3. Bg2 {[%clk 0:02:58.5]} 3... Bb7 {[%clk 0:02:59.2]}
4. O-O {[%clk 0:02:59]} 4... e6 {[%clk 0:02:59.5]} 5. b3 {[%clk 0:02:59.6]} 5...
Be7 {[%clk 0:02:59.1]} 6. c4 {[%clk 0:02:59.9]} 6... b4 {[%clk 0:02:56.3]} 7. d4
{[%clk 0:02:58.6]} 7... O-O {[%clk 0:02:55.8]} 8. a3 {[%clk 0:02:52.3]} 8... a5
{[%clk 0:02:49.9]} 9. axb4 {[%clk 0:02:32.7]} 9... axb4 {[%clk 0:02:48.1]} 10.
Rxa8 {[%clk 0:02:33.6]} 10... Bxa8 {[%clk 0:02:48.2]} 11. Nbd2 {[%clk
0:02:29.2]} 11... c5 {[%clk 0:02:46.3]} 12. dxc5 {[%clk 0:02:23.8]} 12... Bxc5
{[%clk 0:02:45.5]} 13. Bb2 {[%clk 0:02:23.7]} 13... d6 {[%clk 0:02:41.2]} 14.
Qa1 {[%clk 0:02:22.8]} 14... Nbd7 {[%clk 0:02:40.3]} 15. Qa6 {[%clk 0:02:12.2]}
15... e5 {[%clk 0:02:20.4]} 16. e3 {[%clk 0:01:52.5]} 16... h6 {[%clk
0:02:18.4]} 17. Ra1 {[%clk 0:01:41.5]} 17... Qc7 {[%clk 0:01:47.6]} 18. Ne1
{[%clk 0:01:17.2]} 18... Bxg2 {[%clk 0:01:45.1]} 19. Kxg2 {[%clk 0:01:18.1]}
19... e4 {[%clk 0:01:24.6]} 20. Nc2 {[%clk 0:01:12.8]} 20... Re8 {[%clk
0:01:22]} 21. Nd4 {[%clk 0:00:53]} 21... Ne5 {[%clk 0:01:14.3]} 22. Nb5 {[%clk
0:00:41.6]} 22... Qd7 {[%clk 0:01:13.7]} 23. Rd1 {[%clk 0:00:31.9]} 23... Qg4
{[%clk 0:01:05.2]} 24. Re1 {[%clk 0:00:19.1]} 24... Re6 {[%clk 0:01:02.6]} 25.
Qc8+ {[%clk 0:00:16]} 25... Kh7 {[%clk 0:01:01.4]} 26. Bxe5 {[%clk 0:00:16.5]}
26... Rxe5 {[%clk 0:00:57.7]} 27. Qxg4 {[%clk 0:00:16.5]} 27... Nxg4 {[%clk
0:00:58.3]} 28. Ra1 {[%clk 0:00:16.1]} 28... f5 {[%clk 0:00:53.2]} 29. Ra6
{[%clk 0:00:12.9]} 29... Re6 {[%clk 0:00:52.2]} 30. Nd4 {[%clk 0:00:10.4]} 30...
Rf6 {[%clk 0:00:50.1]} 31. Rc6 {[%clk 0:00:07.5]} 31... Ne5 {[%clk 0:00:48.7]}
32. Rc8 {[%clk 0:00:07.6]} 32... Nd3 {[%clk 0:00:48.2]} 33. Ra8 {[%clk
0:00:05.1]} 33... g5 {[%clk 0:00:44.5]} 34. h3 {[%clk 0:00:05.4]} 34... Kg6
{[%clk 0:00:44.2]} 35. g4 {[%clk 0:00:05.8]} 35... fxg4 {[%clk 0:00:41.6]} 36.
hxg4 {[%clk 0:00:06.7]} 36... Rxf2+ {[%clk 0:00:40.8]} 37. Kg3 {[%clk
0:00:05.2]} 37... Bxd4 {[%clk 0:00:39.7]} 38. Nxe4 {[%clk 0:00:04.5]} 38... Bxe3
{[%clk 0:00:37.5]} 39. Nxf2 {[%clk 0:00:04.7]} 39... Bxf2+ {[%clk 0:00:37.8]}
40. Kf3 {[%clk 0:00:05.2]} 40... Bc5 {[%clk 0:00:37.6]} 41. Ke4 {[%clk 0:00:05]}
41... Ne5 {[%clk 0:00:37.2]} 42. Rc8 {[%clk 0:00:03.1]} 42... Nxg4 {[%clk
0:00:36.1]} 43. Kd5 {[%clk 0:00:03.6]} 43... Nf6+ {[%clk 0:00:36]} 44. Ke6
{[%clk 0:00:03.6]} 44... Ne4 {[%clk 0:00:35.8]} 45. Rg8+ {[%clk 0:00:03.6]}
45... Kh5 {[%clk 0:00:35]} 46. Rh8 {[%clk 0:00:02.5]} 46... g4 {[%clk
0:00:34.2]} 47. Kf7 {[%clk 0:00:02.6]} 47... g3 {[%clk 0:00:33.4]} 48. Rg8
{[%clk 0:00:03.2]} 48... Ng5+ {[%clk 0:00:32.7]} 49. Kf6 {[%clk 0:00:02.5]}
49... g2 {[%clk 0:00:32.8]} 50. Kf5 {[%clk 0:00:02]} 50... g1=Q {[%clk
0:00:32.4]} 51. Kf6 {[%clk 0:00:01.8]} 51... Qf2+ {[%clk 0:00:32.1]} 52. Ke7
{[%clk 0:00:02.4]} 52... Qf7+ {[%clk 0:00:32]} 53. Kd8 {[%clk 0:00:02.2]} 53...
Qxg8+ {[%clk 0:00:32.1]} 54. Kc7 {[%clk 0:00:03.1]} 54... Qf7+ {[%clk
0:00:31.9]} 55. Kc6 {[%clk 0:00:04]} 55... Bf2 {[%clk 0:00:28.7]} 56. c5 {[%clk
0:00:03.5]} 56... dxc5 {[%clk 0:00:27.6]} 57. Kb5 {[%clk 0:00:04]} 57... Qb7+
{[%clk 0:00:27.1]} 58. Kc4 {[%clk 0:00:04.1]} 58... Qa6+ {[%clk 0:00:25.6]} 59.
Kd5 {[%clk 0:00:04.4]} 59... Qe6# {[%clk 0:00:25.2]} 0-1

[Event "*** SCC Grand Prix: Titled Tuesday Blitz"]
[Site "Chess.com"]
[Date "2020.10.06"]
[Round "4"]
[White "Smirnov_Pavel"]
[Black "Jospem"]
[Result "0-1"]
[WhiteElo "2804"]
[BlackElo "2993"]
[TimeControl "180+1"]
[EndTime "10:39:48 PDT"]
[Termination "Jospem won on time"]

1. d4 {[%clk 0:03:00.9]} 1... Nf6 {[%clk 0:03:00.1]} 2. c4 {[%clk 0:03:00.6]}
2... e6 {[%clk 0:03:00.5]} 3. Nf3 {[%clk 0:03:00.6]} 3... Bb4+ {[%clk
0:02:58.6]} 4. Nbd2 {[%clk 0:02:54.1]} 4... O-O {[%clk 0:02:56]} 5. a3 {[%clk
0:02:53.4]} 5... Be7 {[%clk 0:02:56.2]} 6. e4 {[%clk 0:02:52.9]} 6... d6 {[%clk
0:02:55.8]} 7. Qc2 {[%clk 0:02:49.7]} 7... c5 {[%clk 0:02:55.4]} 8. d5 {[%clk
0:02:37.5]} 8... e5 {[%clk 0:02:54.9]} 9. Be2 {[%clk 0:02:34.5]} 9... Nbd7
{[%clk 0:02:53.9]} 10. O-O {[%clk 0:02:34.1]} 10... a5 {[%clk 0:02:50.7]} 11.
Rb1 {[%clk 0:02:32.2]} 11... a4 {[%clk 0:02:46.3]} 12. Ne1 {[%clk 0:02:27.2]}
12... Ne8 {[%clk 0:02:44.5]} 13. Nd3 {[%clk 0:02:25.4]} 13... Bg5 {[%clk
0:02:42.7]} 14. b4 {[%clk 0:02:21.1]} 14... axb3 {[%clk 0:02:42.1]} 15. Qxb3
{[%clk 0:02:13.1]} 15... g6 {[%clk 0:02:30.5]} 16. g3 {[%clk 0:02:02.4]} 16...
Ng7 {[%clk 0:02:29.1]} 17. f4 {[%clk 0:02:00.2]} 17... exf4 {[%clk 0:02:12.5]}
18. gxf4 {[%clk 0:02:01.1]} 18... Be7 {[%clk 0:02:12.3]} 19. Bb2 {[%clk
0:01:59.9]} 19... Qa5 {[%clk 0:02:05.2]} 20. Nf3 {[%clk 0:01:47.5]} 20... Nf6
{[%clk 0:02:05.3]} 21. e5 {[%clk 0:01:44.4]} 21... Ne4 {[%clk 0:01:51.4]} 22.
Nf2 {[%clk 0:01:15.9]} 22... Nd2 {[%clk 0:01:27.5]} 23. Nxd2 {[%clk 0:00:51.6]}
23... Qxd2 {[%clk 0:01:28.4]} 24. Qf3 {[%clk 0:00:51.6]} 24... Bf5 {[%clk
0:01:26.7]} 25. Ne4 {[%clk 0:00:49.7]} 25... Bxe4 {[%clk 0:01:14.7]} 26. Qxe4
{[%clk 0:00:49.9]} 26... Nf5 {[%clk 0:01:12.5]} 27. Rfd1 {[%clk 0:00:50]} 27...
Qe3+ {[%clk 0:00:58.7]} 28. Qxe3 {[%clk 0:00:49.7]} 28... Nxe3 {[%clk
0:00:59.6]} 29. Rdc1 {[%clk 0:00:50.3]} 29... Nf5 {[%clk 0:00:55.3]} 30. Bd3
{[%clk 0:00:48.2]} 30... Ne3 {[%clk 0:00:28]} 31. Kf2 {[%clk 0:00:44.4]} 31...
Ng4+ {[%clk 0:00:28.4]} 32. Kf3 {[%clk 0:00:41.1]} 32... h5 {[%clk 0:00:27.7]}
33. h3 {[%clk 0:00:33.4]} 33... Nh6 {[%clk 0:00:27.9]} 34. Rc3 {[%clk
0:00:29.5]} 34... Ra7 {[%clk 0:00:14.6]} 35. Rb3 {[%clk 0:00:29.1]} 35... Kh7
{[%clk 0:00:12.2]} 36. Rb6 {[%clk 0:00:27.5]} 36... Rfa8 {[%clk 0:00:06.4]} 37.
Re1 {[%clk 0:00:19.9]} 37... Ra6 {[%clk 0:00:03.2]} 38. Rxb7 {[%clk 0:00:18.8]}
38... R8a7 {[%clk 0:00:03.9]} 39. Rb8 {[%clk 0:00:15.8]} 39... Ra8 {[%clk
0:00:03.9]} 40. Rb7 {[%clk 0:00:15.2]} 40... R8a7 {[%clk 0:00:04.2]} 41. Rxa7
{[%clk 0:00:15]} 41... Rxa7 {[%clk 0:00:04.3]} 42. exd6 {[%clk 0:00:14.3]} 42...
Bxd6 {[%clk 0:00:05.2]} 43. Re8 {[%clk 0:00:14.7]} 43... Ng8 {[%clk 0:00:04.2]}
44. f5 {[%clk 0:00:15.2]} 44... Rb7 {[%clk 0:00:03.5]} 45. fxg6+ {[%clk
0:00:09.8]} 45... fxg6 {[%clk 0:00:04.4]} 46. Bxg6+ {[%clk 0:00:08.7]} 46...
Kxg6 {[%clk 0:00:02.7]} 47. Rxg8+ {[%clk 0:00:09.1]} 47... Kf5 {[%clk
0:00:03.4]} 48. Bc1 {[%clk 0:00:08]} 48... Rb3+ {[%clk 0:00:03.7]} 49. Kg2
{[%clk 0:00:07]} 49... Rc3 {[%clk 0:00:03.6]} 50. Rg5+ {[%clk 0:00:04.7]} 50...
Ke4 {[%clk 0:00:04.1]} 51. Rxh5 {[%clk 0:00:03.4]} 51... Rxc1 {[%clk 0:00:04.1]}
52. Rh6 {[%clk 0:00:02.5]} 52... Rc2+ {[%clk 0:00:04.5]} 53. Kf1 {[%clk
0:00:02.2]} 53... Bf4 {[%clk 0:00:05.1]} 0-1

[Event "*** SCC Grand Prix: Titled Tuesday Blitz"]
[Site "Chess.com"]
[Date "2020.10.06"]
[Round "4"]
[White "esrosenberg"]
[Black "chegueps"]
[Result "1/2-1/2"]
[WhiteElo "2304"]
[BlackElo "2462"]
[TimeControl "180+1"]
[EndTime "10:39:49 PDT"]
[Termination "Game drawn by repetition"]

1. Nf3 {[%clk 0:03:00.9]} 1... Nc6 {[%clk 0:00:01.4]} 2. d4 {[%clk 0:03:00]}
2... d6 {[%clk 0:00:02.3]} 3. d5 {[%clk 0:02:55.7]} 3... Nb8 {[%clk 0:00:02.2]}
4. e4 {[%clk 0:02:54]} 4... e5 {[%clk 0:00:03.1]} 5. c4 {[%clk 0:02:46.2]} 5...
Nf6 {[%clk 0:00:03.3]} 6. Nc3 {[%clk 0:02:44.9]} 6... g6 {[%clk 0:00:03.5]} 7.
h3 {[%clk 0:02:43.7]} 7... Bg7 {[%clk 0:00:04.4]} 8. Bg5 {[%clk 0:02:36.7]} 8...
O-O {[%clk 0:00:05.3]} 9. Qd2 {[%clk 0:02:36.8]} 9... Qe8 {[%clk 0:00:04.5]} 10.
Rc1 {[%clk 0:02:15.7]} 10... a5 {[%clk 0:00:02.1]} 11. a3 {[%clk 0:02:08]} 11...
Na6 {[%clk 0:00:02.1]} 12. Bd3 {[%clk 0:01:59.2]} 12... Nc5 {[%clk 0:00:02.3]}
13. Bc2 {[%clk 0:01:58.9]} 13... a4 {[%clk 0:00:02.7]} 14. O-O {[%clk
0:01:54.8]} 14... Nh5 {[%clk 0:00:02.9]} 15. Rfe1 {[%clk 0:01:50.5]} 15... Nf4
{[%clk 0:00:02.7]} 16. Bxf4 {[%clk 0:01:47.4]} 16... exf4 {[%clk 0:00:03.6]} 17.
Qxf4 {[%clk 0:01:47.8]} 17... Bxc3 {[%clk 0:00:03.8]} 18. bxc3 {[%clk
0:01:47.5]} 18... f6 {[%clk 0:00:04.7]} 19. Nd4 {[%clk 0:01:40]} 19... Bd7
{[%clk 0:00:04.9]} 20. h4 {[%clk 0:01:30]} 20... Qe5 {[%clk 0:00:04.8]} 21. Qe3
{[%clk 0:01:19.1]} 21... b6 {[%clk 0:00:04.2]} 22. f4 {[%clk 0:01:18.9]} 22...
Qe7 {[%clk 0:00:02.7]} 23. h5 {[%clk 0:01:17.9]} 23... Kg7 {[%clk 0:00:01.1]}
24. f5 {[%clk 0:01:16.1]} 24... g5 {[%clk 0:00:01.3]} 25. Ne6+ {[%clk
0:01:13.1]} 25... Bxe6 {[%clk 0:00:01.3]} 26. fxe6 {[%clk 0:01:11.3]} 26... f5
{[%clk 0:00:01.1]} 27. exf5 {[%clk 0:01:10]} 27... Qf6 {[%clk 0:00:02]} 28. g4
{[%clk 0:01:05.1]} 28... Rae8 {[%clk 0:00:02.3]} 29. Kg2 {[%clk 0:01:04.6]}
29... h6 {[%clk 0:00:02.4]} 30. Qd4 {[%clk 0:01:00.1]} 30... Re7 {[%clk
0:00:02.5]} 31. Kf3 {[%clk 0:00:57.6]} 31... Ra8 {[%clk 0:00:02.5]} 32. Qxf6+
{[%clk 0:00:56.4]} 32... Kxf6 {[%clk 0:00:02.6]} 33. Ke3 {[%clk 0:00:56.9]}
33... Ra7 {[%clk 0:00:03]} 34. Kd4 {[%clk 0:00:57.3]} 34... Ra8 {[%clk
0:00:03.5]} 35. Rb1 {[%clk 0:00:57.7]} 35... Ra7 {[%clk 0:00:03.9]} 36. Rb4
{[%clk 0:00:58]} 36... Ra8 {[%clk 0:00:04.3]} 37. Reb1 {[%clk 0:00:54.6]} 37...
Ra7 {[%clk 0:00:04.6]} 38. Rb5 {[%clk 0:00:54.8]} 38... Ra8 {[%clk 0:00:04.6]}
39. R1b4 {[%clk 0:00:49.1]} 39... Ra7 {[%clk 0:00:04.9]} 40. Ke3 {[%clk
0:00:48.5]} 40... Ra8 {[%clk 0:00:05.1]} 41. Rxc5 {[%clk 0:00:44.8]} 41... dxc5
{[%clk 0:00:04.7]} 42. Rxa4 {[%clk 0:00:45.2]} 42... Rxa4 {[%clk 0:00:04.6]} 43.
Bxa4 {[%clk 0:00:46.1]} 43... Rg7 {[%clk 0:00:04.7]} 44. Bc6 {[%clk 0:00:43.1]}
44... Rg8 {[%clk 0:00:05]} 45. a4 {[%clk 0:00:43.3]} 45... Rd8 {[%clk
0:00:05.2]} 46. Kd2 {[%clk 0:00:41.8]} 46... Rd6 {[%clk 0:00:04.5]} 47. Kc2
{[%clk 0:00:41.7]} 47... Rd8 {[%clk 0:00:04.6]} 48. Kb3 {[%clk 0:00:42]} 48...
Rb8 {[%clk 0:00:05.1]} 49. Ka3 {[%clk 0:00:41.6]} 49... Ke7 {[%clk 0:00:04.9]}
50. Kb3 {[%clk 0:00:40.8]} 50... Kf6 {[%clk 0:00:05.4]} 51. Kc2 {[%clk
0:00:40.7]} 51... Ke7 {[%clk 0:00:05.5]} 52. Kd3 {[%clk 0:00:41.3]} 52... Kf6
{[%clk 0:00:06.4]} 53. Ke4 {[%clk 0:00:41.9]} 53... Rd8 {[%clk 0:00:06.5]} 54.
Ke3 {[%clk 0:00:39.2]} 54... Rb8 {[%clk 0:00:06.8]} 55. Ke4 {[%clk 0:00:37.8]}
55... Rd8 {[%clk 0:00:07.2]} 56. Bb5 {[%clk 0:00:38.3]} 56... Rb8 {[%clk
0:00:07.2]} 57. d6 {[%clk 0:00:35.2]} 57... cxd6 {[%clk 0:00:07.1]} 58. Kd5
{[%clk 0:00:35.7]} 58... Ke7 {[%clk 0:00:07.4]} 59. Bd7 {[%clk 0:00:32]} 59...
Ra8 {[%clk 0:00:07.2]} 60. Bc6 {[%clk 0:00:27]} 60... Ra7 {[%clk 0:00:07.2]} 61.
Bb5 {[%clk 0:00:26.3]} 61... Rc7 {[%clk 0:00:07.5]} 62. Bc6 {[%clk 0:00:23.1]}
62... Ra7 {[%clk 0:00:06.6]} 63. Bb5 {[%clk 0:00:22.6]} 63... Rc7 {[%clk
0:00:06.9]} 64. Bd7 {[%clk 0:00:22.9]} 64... Ra7 {[%clk 0:00:07.1]} 65. Bb5
{[%clk 0:00:20.8]} 1/2-1/2

[Event "*** SCC Grand Prix: Titled Tuesday Blitz"]
[Site "Chess.com"]
[Date "2020.10.06"]
[Round "4"]
[White "ChessWarrior7197"]
[Black "Gabix_94"]
[Result "1-0"]
[WhiteElo "3009"]
[BlackElo "2806"]
[TimeControl "180+1"]
[EndTime "10:39:50 PDT"]
[Termination "ChessWarrior7197 won on time"]

1. e4 {[%clk 0:03:00.9]} 1... c5 {[%clk 0:02:59.1]} 2. Nf3 {[%clk 0:03:00.3]}
2... Nc6 {[%clk 0:02:59.5]} 3. Bb5 {[%clk 0:02:59.7]} 3... Na5 {[%clk
0:02:57.8]} 4. O-O {[%clk 0:02:58.8]} 4... a6 {[%clk 0:02:57.6]} 5. Be2 {[%clk
0:02:59.4]} 5... d6 {[%clk 0:02:58]} 6. c4 {[%clk 0:02:59.3]} 6... Nf6 {[%clk
0:02:57.7]} 7. Nc3 {[%clk 0:02:58.4]} 7... e6 {[%clk 0:02:51.6]} 8. d4 {[%clk
0:02:58.1]} 8... cxd4 {[%clk 0:02:51.9]} 9. Nxd4 {[%clk 0:02:59]} 9... Be7
{[%clk 0:02:51.7]} 10. Be3 {[%clk 0:02:58.9]} 10... O-O {[%clk 0:02:48.4]} 11.
f3 {[%clk 0:02:57.1]} 11... Bd7 {[%clk 0:02:47.2]} 12. b3 {[%clk 0:02:53.1]}
12... Qc7 {[%clk 0:02:43.8]} 13. Rc1 {[%clk 0:02:53.3]} 13... Rac8 {[%clk
0:02:38.4]} 14. Qd2 {[%clk 0:02:53.2]} 14... b6 {[%clk 0:02:36.2]} 15. Rfd1
{[%clk 0:02:48.5]} 15... Qb8 {[%clk 0:02:34.6]} 16. Qe1 {[%clk 0:02:46.8]} 16...
Rfe8 {[%clk 0:02:31.9]} 17. Qf2 {[%clk 0:02:45.9]} 17... Bd8 {[%clk 0:02:27.3]}
18. Kh1 {[%clk 0:02:39.4]} 18... Bc7 {[%clk 0:02:25.3]} 19. g4 {[%clk
0:02:39.7]} 19... Red8 {[%clk 0:02:12.4]} 20. g5 {[%clk 0:02:37.9]} 20... Ne8
{[%clk 0:02:12.3]} 21. h4 {[%clk 0:02:34.2]} 21... Nc6 {[%clk 0:02:10.9]} 22. h5
{[%clk 0:02:33.9]} 22... Ne7 {[%clk 0:02:06.1]} 23. h6 {[%clk 0:02:22.3]} 23...
g6 {[%clk 0:02:02.9]} 24. f4 {[%clk 0:02:22.2]} 24... b5 {[%clk 0:01:51.4]} 25.
cxb5 {[%clk 0:02:20]} 25... Ba5 {[%clk 0:01:50.3]} 26. Bd2 {[%clk 0:01:51.9]}
26... axb5 {[%clk 0:01:43]} 27. Ndxb5 {[%clk 0:01:47.9]} 27... Bxb5 {[%clk
0:01:28.8]} 28. Nxb5 {[%clk 0:01:43.1]} 28... Bxd2 {[%clk 0:01:25.4]} 29. Rxc8
{[%clk 0:01:43.1]} 29... Rxc8 {[%clk 0:01:18.6]} 30. Rxd2 {[%clk 0:01:42.8]}
30... d5 {[%clk 0:01:17.7]} 31. exd5 {[%clk 0:01:08.5]} 31... Nxd5 {[%clk
0:01:16.9]} 32. Bc4 {[%clk 0:01:08.9]} 32... Nxf4 {[%clk 0:01:05]} 33. Rd7
{[%clk 0:01:08.7]} 33... Qe5 {[%clk 0:00:57.3]} 34. Qg3 {[%clk 0:00:38.4]} 34...
Qe4+ {[%clk 0:00:48.1]} 35. Kh2 {[%clk 0:00:38.2]} 35... Nh5 {[%clk 0:00:44.6]}
36. Qf2 {[%clk 0:00:22.9]} 36... Qe5+ {[%clk 0:00:40.9]} 37. Kg1 {[%clk
0:00:22]} 37... Nf4 {[%clk 0:00:38.4]} 38. Kf1 {[%clk 0:00:16.4]} 38... Qxg5
{[%clk 0:00:36.8]} 39. Na7 {[%clk 0:00:16.9]} 39... Ra8 {[%clk 0:00:34.9]} 40.
Nc6 {[%clk 0:00:17.3]} 40... Nf6 {[%clk 0:00:33.1]} 41. Rd4 {[%clk 0:00:13.5]}
41... e5 {[%clk 0:00:31.6]} 42. Nxe5 {[%clk 0:00:10.8]} 42... Qxe5 {[%clk
0:00:28]} 43. Qxf4 {[%clk 0:00:09.2]} 43... Qe7 {[%clk 0:00:19.9]} 44. a4 {[%clk
0:00:09.2]} 44... Re8 {[%clk 0:00:19.2]} 45. Kg2 {[%clk 0:00:07.5]} 45... Nh5
{[%clk 0:00:18.9]} 46. Qf2 {[%clk 0:00:05.4]} 46... Qg5+ {[%clk 0:00:18.8]} 47.
Kf1 {[%clk 0:00:04.1]} 47... Qc1+ {[%clk 0:00:18.9]} 48. Kg2 {[%clk 0:00:03.7]}
48... Qg5+ {[%clk 0:00:15.7]} 49. Kh2 {[%clk 0:00:04.2]} 49... Nf6 {[%clk
0:00:15.2]} 50. Qf4 {[%clk 0:00:02.6]} 50... Qh5+ {[%clk 0:00:12.6]} 51. Kg2
{[%clk 0:00:03.1]} 1-0

[Event "*** SCC Grand Prix: Titled Tuesday Blitz"]
[Site "Chess.com"]
[Date "2020.10.06"]
[Round "4"]
[White "gumimis"]
[Black "Malysch"]
[Result "1-0"]
[WhiteElo "2263"]
[BlackElo "2405"]
[TimeControl "180+1"]
[EndTime "10:39:50 PDT"]
[Termination "gumimis won on time"]

1. e4 {[%clk 0:02:58.9]} 1... d5 {[%clk 0:03:00.9]} 2. exd5 {[%clk 0:02:59]}
2... Qxd5 {[%clk 0:03:01.8]} 3. Nc3 {[%clk 0:02:59.3]} 3... Qd6 {[%clk
0:03:02.2]} 4. d4 {[%clk 0:02:59.1]} 4... Nf6 {[%clk 0:03:02.2]} 5. Nf3 {[%clk
0:02:58.8]} 5... a6 {[%clk 0:03:02.5]} 6. Bc4 {[%clk 0:02:53.9]} 6... b5 {[%clk
0:03:02]} 7. Bb3 {[%clk 0:02:51.2]} 7... Bb7 {[%clk 0:03:02.1]} 8. d5 {[%clk
0:02:41.5]} 8... c5 {[%clk 0:02:55.2]} 9. dxc6 {[%clk 0:02:39.7]} 9... Qxd1+
{[%clk 0:02:54.4]} 10. Nxd1 {[%clk 0:02:39]} 10... Nxc6 {[%clk 0:02:55.3]} 11.
Bf4 {[%clk 0:02:35.8]} 11... e6 {[%clk 0:02:54.4]} 12. O-O {[%clk 0:02:26.5]}
12... Bc5 {[%clk 0:02:48.9]} 13. Nc3 {[%clk 0:02:21.7]} 13... Ke7 {[%clk
0:02:47.4]} 14. Rfe1 {[%clk 0:02:17.2]} 14... Rhd8 {[%clk 0:02:42.6]} 15. Bg5
{[%clk 0:02:13.6]} 15... Nd4 {[%clk 0:02:35.8]} 16. Nxd4 {[%clk 0:02:10.4]}
16... Bxd4 {[%clk 0:02:36.7]} 17. Rad1 {[%clk 0:01:52.5]} 17... h6 {[%clk
0:02:18.1]} 18. Be3 {[%clk 0:01:32.9]} 18... Bxe3 {[%clk 0:02:12.6]} 19. fxe3
{[%clk 0:01:29.6]} 19... Bc6 {[%clk 0:01:57.4]} 20. h3 {[%clk 0:01:22.6]} 20...
a5 {[%clk 0:01:51.8]} 21. a3 {[%clk 0:01:20.3]} 21... b4 {[%clk 0:01:49.6]} 22.
axb4 {[%clk 0:01:18]} 22... axb4 {[%clk 0:01:50.5]} 23. Ne2 {[%clk 0:01:17.8]}
23... e5 {[%clk 0:01:35.9]} 24. Nc1 {[%clk 0:00:56.9]} 24... Ne4 {[%clk
0:01:28.5]} 25. Nd3 {[%clk 0:00:53.4]} 25... f6 {[%clk 0:01:13.9]} 26. Nxb4
{[%clk 0:00:52.6]} 26... Bb7 {[%clk 0:01:09]} 27. Nd5+ {[%clk 0:00:38.5]} 27...
Kf8 {[%clk 0:01:02.7]} 28. Nc7 {[%clk 0:00:35.4]} 28... Rxd1 {[%clk 0:00:54.3]}
29. Rxd1 {[%clk 0:00:35.9]} 29... Rc8 {[%clk 0:00:53.2]} 30. Ne6+ {[%clk
0:00:34.9]} 30... Ke7 {[%clk 0:00:51.3]} 31. Nxg7 {[%clk 0:00:31.7]} 31... Nc5
{[%clk 0:00:51.4]} 32. Nf5+ {[%clk 0:00:29.3]} 32... Kf8 {[%clk 0:00:50.8]} 33.
Rd6 {[%clk 0:00:22.7]} 33... Nxb3 {[%clk 0:00:47.7]} 34. Rxf6+ {[%clk 0:00:20]}
34... Ke8 {[%clk 0:00:42.9]} 35. cxb3 {[%clk 0:00:14.9]} 35... Rc2 {[%clk
0:00:40.7]} 36. Nd6+ {[%clk 0:00:13.7]} 36... Ke7 {[%clk 0:00:39.7]} 37. Rg6
{[%clk 0:00:13.8]} 37... Bd5 {[%clk 0:00:32.9]} 38. Nc4 {[%clk 0:00:10.2]} 38...
Be4 {[%clk 0:00:27.7]} 39. Rg7+ {[%clk 0:00:06]} 39... Kf6 {[%clk 0:00:27.2]}
40. Rg8 {[%clk 0:00:06.4]} 40... h5 {[%clk 0:00:23.7]} 41. h4 {[%clk 0:00:06.6]}
41... Bd5 {[%clk 0:00:19]} 42. Rg5 {[%clk 0:00:06.5]} 42... Be6 {[%clk 0:00:14]}
43. Nxe5 {[%clk 0:00:06.6]} 43... Rxb2 {[%clk 0:00:12.7]} 44. Nf3 {[%clk
0:00:04]} 44... Rxb3 {[%clk 0:00:11.3]} 45. e4 {[%clk 0:00:04.1]} 45... Bg4
{[%clk 0:00:10.4]} 46. e5+ {[%clk 0:00:04.3]} 46... Ke6 {[%clk 0:00:09.9]} 47.
Nd4+ {[%clk 0:00:04.7]} 47... Kf7 {[%clk 0:00:09.5]} 48. Nxb3 {[%clk 0:00:05.6]}
48... Ke6 {[%clk 0:00:08.6]} 49. Rxg4 {[%clk 0:00:06]} 49... hxg4 {[%clk
0:00:08.3]} 50. Kf2 {[%clk 0:00:05.7]} 1-0

[Event "*** SCC Grand Prix: Titled Tuesday Blitz"]
[Site "Chess.com"]
[Date "2020.10.06"]
[Round "4"]
[White "Chessdude1987"]
[Black "ailime26"]
[Result "1-0"]
[WhiteElo "2230"]
[BlackElo "1839"]
[TimeControl "180+1"]
[EndTime "10:39:50 PDT"]
[Termination "Chessdude1987 won on time"]

1. e4 {[%clk 0:03:00.9]} 1... c5 {[%clk 0:02:57.7]} 2. b3 {[%clk 0:02:59.9]}
2... e6 {[%clk 0:02:56.7]} 3. Bb2 {[%clk 0:02:59]} 3... d5 {[%clk 0:02:57.6]} 4.
e5 {[%clk 0:02:58.9]} 4... Nc6 {[%clk 0:02:50.5]} 5. f4 {[%clk 0:02:58.9]} 5...
Nge7 {[%clk 0:02:09.3]} 6. Nc3 {[%clk 0:02:58.6]} 6... a6 {[%clk 0:02:00.3]} 7.
Qf3 {[%clk 0:02:53.4]} 7... b5 {[%clk 0:01:53]} 8. O-O-O {[%clk 0:02:52]} 8...
Bb7 {[%clk 0:01:51.7]} 9. g4 {[%clk 0:02:51.2]} 9... d4 {[%clk 0:01:45.1]} 10.
Ne4 {[%clk 0:02:50.8]} 10... Nd5 {[%clk 0:01:18.4]} 11. Bg2 {[%clk 0:02:48.6]}
11... c4 {[%clk 0:00:59.6]} 12. Qg3 {[%clk 0:02:27.8]} 12... Be7 {[%clk
0:00:48.3]} 13. f5 {[%clk 0:02:27.7]} 13... Qa5 {[%clk 0:00:39.5]} 14. Kb1
{[%clk 0:02:18.7]} 14... Ncb4 {[%clk 0:00:34.5]} 15. a3 {[%clk 0:02:18.6]} 15...
Nxc2 {[%clk 0:00:18.5]} 16. Kxc2 {[%clk 0:02:04]} 16... d3+ {[%clk 0:00:16.7]}
17. Kb1 {[%clk 0:02:03.2]} 17... Bxa3 {[%clk 0:00:14.3]} 18. Nd6+ {[%clk
0:01:56.5]} 18... Bxd6 {[%clk 0:00:13.2]} 19. exd6 {[%clk 0:01:56.3]} 19... Qb4
{[%clk 0:00:10.6]} 20. fxe6 {[%clk 0:01:49.2]} 20... fxe6 {[%clk 0:00:10.1]} 21.
Qe5 {[%clk 0:01:46.9]} 21... Kd7 {[%clk 0:00:09.3]} 22. Qxg7+ {[%clk 0:01:40.8]}
22... Kxd6 {[%clk 0:00:09]} 23. Nh3 {[%clk 0:01:28]} 23... Qxb3 {[%clk
0:00:08.8]} 24. Qe5+ {[%clk 0:01:16.5]} 24... Kd7 {[%clk 0:00:08.4]} 25. Bxd5
{[%clk 0:01:09.6]} 25... Bxd5 {[%clk 0:00:07.8]} 26. Rhf1 {[%clk 0:01:07.7]}
26... Rhf8 {[%clk 0:00:06.7]} 27. Qc3 {[%clk 0:00:41]} 27... Qxc3 {[%clk
0:00:06]} 28. Bxc3 {[%clk 0:00:40.7]} 28... Rxf1 {[%clk 0:00:06]} 29. Rxf1
{[%clk 0:00:40.8]} 29... Bg2 {[%clk 0:00:05.6]} 30. Rf7+ {[%clk 0:00:40.5]}
30... Kd6 {[%clk 0:00:04.3]} 31. Rxh7 {[%clk 0:00:40]} 31... Rf8 {[%clk
0:00:04.3]} 32. Ng5 {[%clk 0:00:33.4]} 32... Rf1+ {[%clk 0:00:03.7]} 33. Kb2
{[%clk 0:00:33.1]} 33... a5 {[%clk 0:00:02.4]} 34. Nf7+ {[%clk 0:00:31.1]} 34...
Kd5 {[%clk 0:00:02.1]} 35. Rh5+ {[%clk 0:00:29.6]} 35... Kc6 {[%clk 0:00:02.1]}
36. Ne5+ {[%clk 0:00:27.4]} 36... Kb7 {[%clk 0:00:02.3]} 37. Bxa5 {[%clk
0:00:26.1]} 37... Ka6 {[%clk 0:00:02.6]} 38. Bc3 {[%clk 0:00:25.4]} 38... Bd5
{[%clk 0:00:02.1]} 39. Rh8 {[%clk 0:00:23.1]} 39... Kb6 {[%clk 0:00:02.4]} 40.
Rb8+ {[%clk 0:00:22.5]} 40... Kc5 {[%clk 0:00:03.3]} 41. Nd7+ {[%clk 0:00:20.6]}
41... Kd6 {[%clk 0:00:04.2]} 42. Ne5 {[%clk 0:00:18.3]} 42... Kc5 {[%clk
0:00:05.1]} 43. h4 {[%clk 0:00:17.9]} 43... b4 {[%clk 0:00:05.2]} 44. Bxb4+
{[%clk 0:00:17.5]} 44... Kd4 {[%clk 0:00:05.6]} 45. Bc3+ {[%clk 0:00:17.8]}
45... Ke4 {[%clk 0:00:05.2]} 46. h5 {[%clk 0:00:17.8]} 46... Rg1 {[%clk
0:00:04.6]} 47. h6 {[%clk 0:00:17.2]} 47... Rh1 {[%clk 0:00:04]} 48. g5 {[%clk
0:00:16.3]} 48... Kf5 {[%clk 0:00:03.5]} 49. Rh8 {[%clk 0:00:12.8]} 49... Kxg5
{[%clk 0:00:02.8]} 50. h7 {[%clk 0:00:12.3]} 50... Kf6 {[%clk 0:00:02.1]} 51.
Rf8+ {[%clk 0:00:12.1]} 51... Kg7 {[%clk 0:00:01.4]} 52. h8=Q+ {[%clk
0:00:10.4]} 1-0